Cogmind - Beta 13 @@@ ROGUE MODE // 2024.04.22 @ 13:35:39 Player: Darch Result: Core destroyed Performance ------------- Evolutions (1) 500 Regions Visited (2) 400 Robots Destroyed (21) 105 Value Destroyed (569) 569 Prototype IDs (4) 80 Alien Tech Used (0) 0 Bonus (0) 0 TOTAL SCORE: 1654 Bonus ------- None Cogmind --------- Core Integrity 0/400 Matter 290/300 Energy 111/250 System Corruption 0% Temperature Critical (550) Movement Treading (160) Location -9/Materials Parts ------- > --- POWER (1) -------- Ion Engine > --- PROPULSION (4) --- Light Treads Light Treads > --- UTILITY (2) ------ Seismic Detector > --- WEAPON (2) ------- Heavy Particle Cannon > --- INVENTORY (5) ---- Ion Engine Advanced Visual Processing Unit Improved Light Armor Plating Heavy Particle Cannon Grenade Launcher Peak State ------------ > --- POWER ------------ Ion Engine > --- PROPULSION ------- Improved Hover Unit Improved Hover Unit Improved Hover Unit Improved Hover Unit > --- UTILITY ---------- Seismic Detector > --- WEAPON ----------- Particle Cannon Particle Cannon > --- INVENTORY -------- Medium Battery Grenade Launcher Grenade Launcher [Rating: 14] Favorites ----------- Power Ion Engine Engine Ion Engine Propulsion Light Treads Treads Light Treads Hover Unit Improved Hover Unit Utility Seismic Detector Device Seismic Detector Storage Small Storage Unit Protection Improved Light Armor Plating Weapon Particle Cannon Energy Gun EM Pulse Gun Energy Cannon Particle Cannon Ballistic Gun Assault Rifle Launcher Grenade Launcher Build | -11 -10 -9 ------- Run | Yrd Mat Mat Slots Evolved 2 | . . 2 Power . | . . . Propulsion 2 | . . 2 Utility . | . . . Weapon . | . . . Parts Attached 28 | 7 8 13 Power 2 | 1 . 1 Engine 2 | 1 . 1 Core . | . . . Reactor . | . . . Propulsion 8 | 2 2 4 Treads 4 | 2 . 2 Leg . | . . . Wheel . | . . . Hover 4 | . 2 2 Flight . | . . . Utility 8 | 2 4 2 Device 1 | 1 . . Storage 5 | 1 4 . Processor . | . . . Hackware . | . . . Protection 2 | . . 2 Artifact . | . . . Weapon 10 | 2 2 6 Energy Gun 1 | 1 . . Energy Cannon 5 | . 1 4 Ballistic Gun 1 | 1 . . Ballistic Cannon . | . . . Launcher 3 | . 1 2 Special Weapon . | . . . Impact Weapon . | . . . Slashing Weapon . | . . . Piercing Weapon . | . . . Special Melee Weapon . | . . . Unidentified Prototypes . | . . . Parts Lost 7 | . . 7 Power . | . . . Propulsion 4 | . . 4 Utility 1 | . . 1 Weapon 2 | . . 2 Highest Loss Streak 4 | . . 4 To Critical Strikes . | . . . Average Slot Usage (%) 77 | . 96 59 Engine 12 | . 14 11 Treads 12 | . 21 4 Hover 6 | . 7 6 Device 12 | . 14 11 Storage 5 | . 10 . Protection 2 | . . 4 Energy Gun 1 | . 2 . Energy Cannon 10 | . 3 17 Ballistic Gun 5 | . 10 . Launcher 7 | . 11 4 Naked Turns . | . . . Heaviest Build 90 | 15 90 21 Greatest Support 40 | 40 40 28 Greatest Overweight (x) 6 | . 3 6 Average Overweight (x) . | . . 1 Largest Inventory Capacity 25 | 8 25 5 Average Capacity 7 | 7 10 5 Most Carried 5 | 1 5 5 Average Carried 2 | . 4 2 Final Capacity 8 | 8 5 5 Final Carried 5 | 1 5 5 Class Distribution -------------------- 100% | Mutant Dominant Class ---------------- Mutant | -10/Materials Mutant | -9/Materials Resources | -11 -10 -9 ----------- Run | Yrd Mat Mat Matter Collected 639 | 275 16 348 Remotely . | . . . Salvage Created 538 | 61 21 456 Parts 38 | 8 4 26 Haulers Intercepted . | . . . Recyclers Shooed . | . . . Parts Field Recycled . | . . . Retrieved Matter . | . . . Parts Self-Destructed . | . . . Prevented . | . . . Kills | -11 -10 -9 ------- Run | Yrd Mat Mat Combat Hostiles Destroyed 16 | . 2 14 Cannons 10 | . . 10 AOE 4 | . 2 2 Classes Destroyed 7 | 1 2 4 Tunneler 3 | 3 . . Watcher 2 | . 1 1 Swarmer 4 | . . 4 Grunt 7 | . 2 5 Brawler 1 | . . 1 Duelist 1 | . . 1 Sentry 3 | . . 3 Best Kill Streak 6 | 2 2 6 Combat Bots Only 6 | . 2 6 Max Kills in Single Turn 2 | 1 1 2 Gunslinging . | . . . Exploded 1 | . 1 1 Melee . | . . . Uniques/NPCs Destroyed . | . . . Combat | -11 -10 -9 -------- Run | Yrd Mat Mat Hostile Shots Fired 109 | . 6 103 Missed 24 | . 3 21 Damage Taken 1400 | . 104 1296 Core 472 | . 46 426 Absorbed by Shields . | . . . Core Remaining (%) 90 | 100 81 . Volleys Fired 40 | 5 7 28 Largest 2 | 2 1 2 Hottest 150 | 60 30 150 Shots Fired 64 | 7 7 50 Gun 7 | 7 . . Cannon 42 | . . 42 Launcher 15 | . 7 8 Special . | . . . Kinetic 5 | 5 . . Thermal 42 | . . 42 Explosive 15 | . 7 8 Electromagnetic 2 | 2 . . Robot Hit Streak 5 | 2 4 5 Robot Miss Streak 5 | 1 2 5 Penetration Max . | . . . Secondary Targets . | . . . Shots Hit Robots 34 | 4 3 27 Core Hits 29 | 3 6 20 Critical Kills 2 | . . 2 Critical Parts Destroyed . | . . . Critical Strikes 2 | . . 2 Meltdown 2 | . . 2 Melee Attacks . | . . . Impact . | . . . Slashing . | . . . Piercing . | . . . Sneak Attacks . | . . . Combat Hostiles . | . . . Follow-up Attacks . | . . . Damage Inflicted 1110 | 62 280 768 Guns 62 | 62 . . Cannons 519 | . . 519 Explosions 526 | . 280 246 Melee . | . . . Ramming 3 | . . 3 Kinetic 49 | 49 . . Thermal 519 | . . 519 Explosive 526 | . 280 246 Electromagnetic 13 | 13 . . Impact . | . . . Slashing . | . . . Piercing . | . . . Highest Corruption . | . . . Average Corruption . | . . . Corruption Purged . | . . . Corruption Blocked . | . . . Overload Shots . | . . . Overflow Damage 15 | . 13 2 Projectiles . | . . . Explosions 15 | . 13 2 Melee . | . . . Knockbacks . | . . . Impact . | . . . Kinetic . | . . . Secondary . | . . . Self-Inflicted Damage 126 | . 71 55 Shots 6 | . 4 2 Rammed 1 | . . 1 Targets Rammed 1 | . . 1 Kicked . | . . . Crushed . | . . . Highest Temperature 830 | . 1 830 Average Temperature 249 | . 1 255 Received Heat Transfer 357 | . 18 339 Effects 21 | . . 21 Shutdowns 3 | . . 3 Energy Bleed 3 | . . 3 Interference 3 | . . 3 Matter Decay 1 | . . 1 Short Circuit 2 | . . 2 Damage (minor) 2 | . . 2 Damage (major) 4 | . . 4 Damage (core) 3 | . . 3 Siege Activations . | . . . Robots Corrupted . | . . . Combat Hostiles . | . . . Parts Fried . | . . . Impact Corruptions . | . . . Robots Melted 2 | . . 2 Combat Hostiles 2 | . . 2 Parts Melted 6 | . . 6 Heat Transferred 851 | . . 851 Parts Sabotaged . | . . . Parts Stolen . | . . . Parts Stripped . | . . . Power Chain Reactions . | . . . Alert | -11 -10 -9 ------- Run | Yrd Mat Mat Peak Influence 267 | 15 99 267 Initial 9 | . 9 1 Average 73 | 5 21 149 Maximum Alert Level 1 | . . 1 Low Security (%) 88 | 100 100 72 Level 1 11 | . . 27 Level 2 . | . . . Level 3 . | . . . Level 4 . | . . . Level 5 . | . . . High Security . | . . . Max Security . | . . . Squads Dispatched 2 | . 1 1 Investigation 2 | . 1 1 Extermination . | . . . Reinforcement . | . . . Assault . | . . . Garrison . | . . . Intercept . | . . . Searches Triggered . | . . . Construction Impeded . | . . . Haulers Reinforced . | . . . Active Scanning Responses . | . . . Cargo Convoy Interrupts . | . . . Stealth | -11 -10 -9 --------- Run | Yrd Mat Mat Distress Signals 1 | . . 1 Communications Jammed . | . . . Distress Signals . | . . . Times Spotted 23 | . 5 18 Peak Tracking Total 5 | . 2 5 Tactical Retreats 1 | . . 1 Traps | -11 -10 -9 ------- Run | Yrd Mat Mat Traps Triggered 1 | . 1 . Indirectly . | . . . Trap Hack Attempts . | . . . Triggered . | . . . Disarmed . | . . . Reprogrammed . | . . . Reused . | . . . Traps Extracted . | . . . Installed . | . . . Triggered . | . . . Machines | -11 -10 -9 ---------- Run | Yrd Mat Mat Machines Disabled 2 | . . 2 Max in Single Turn 1 | . . 1 Machines Repaired . | . . . Machines Dismantled . | . . . Machines Sabotaged . | . . . Overloaded Fab Kills . | . . . Hacking | -11 -10 -9 --------- Run | Yrd Mat Mat Machines Accessed 8 | . 3 5 Terminals 7 | . 2 5 Fabricators . | . . . Repair Stations 1 | . 1 . Recycling Units . | . . . Scanalyzers . | . . . Garrison Access . | . . . Total Hacks 18 | . 5 13 Successful 14 | . 4 10 Failed 4 | . 1 3 Catastrophic . | . . . Database Lockouts . | . . . Manual 6 | . 1 5 Terminals 17 | . 4 13 Fabricators . | . . . Repair Stations 1 | . 1 . Recycling Units . | . . . Scanalyzers . | . . . Garrison Access . | . . . Terminal Hacks 10 | . 3 7 Record 4 | . . 4 Robot Analysis 1 | . . 1 Prototype ID Bank 2 | . 1 1 Alert Level 1 | . 1 . Unreport Threat 1 | . 1 . Recall Reinforcements 1 | . . 1 Fabricator Hacks . | . . . Repair Station Hacks . | . . . Recycling Unit Hacks . | . . . Scanalyzer . | . . . Garrison Access Hacks . | . . . Unauthorized Hacks 4 | . 1 3 Terminals 3 | . . 3 Botnet 3 | . . 3 Fabricators . | . . . Repair Stations 1 | . 1 . Mechanics 1 | . 1 . Recycling Units . | . . . Scanalyzers . | . . . Garrison Access . | . . . Data Cores Recovered . | . . . Used . | . . . Hacking Detections 5 | . 1 4 Full Trace Events 1 | . . 1 Feedback Events . | . . . Feedback Blocked . | . . . Robot Schematics Acquired . | . . . Robots Built . | . . . Authchips . | . . . Time . | . . . Total Robot Build Rating . | . . . Part Schematics Acquired . | . . . Parts Built . | . . . Authchips . | . . . Time . | . . . Total Part Build Rating . | . . . Parts Repaired . | . . . Time . | . . . Parts Recycled . | . . . Recycled Matter . | . . . Retrieved Matter . | . . . Retrieved Components . | . . . Parts Scanalyzed . | . . . Part Schematics Acquired . | . . . Parts Damaged . | . . . Bothacking | -11 -10 -9 ------------ Run | Yrd Mat Mat Used RIF Installer . | . . . Robots Hacked . | . . . Non-combat . | . . . Combat . | . . . Robot Hacks Applied . | . . . Relay Couplers Released . | . . . Fabnet Peak Effective % . | . . . Robots Rewired . | . . . Allies Hacked . | . . . Hacks Repelled . | . . . Allies | -11 -10 -9 -------- Run | Yrd Mat Mat Total Allies . | . . . Largest Group . | . . . Highest-Rated Group . | . . . Highest-Rated Ally . | . . . Total Orders . | . . . Ally Attacks . | . . . Total Damage . | . . . Kills . | . . . Allies Corrupted . | . . . Allies Melted . | . . . Intel | -11 -10 -9 ------- Run | Yrd Mat Mat Robot Analysis Total 1 | . . 1 Derelict Logs Recovered . | . . . Drone Launches . | . . . Drone Recoveries . | . . . Exploration | -11 -10 -9 ------------- Run | Yrd Mat Mat Turns Passed 1151 | 175 482 494 Spaces Moved 734 | 98 364 272 Core 74 | 4 1 69 Treads 336 | 94 164 78 Legs . | . . . Wheels . | . . . Hover 324 | . 199 125 Flight . | . . . Fastest Speed 48 | 50 56 48 Average Speed 125 | 155 103 143 Slowest Speed 350 | 160 320 350 Overloaded Moves . | . . . Propulsion Burnouts . | . . . Robots Hopped . | . . . Cave-ins Triggered . | . . . Exploration Rate (%) 25 | 7 42 27 Regions Visited 2 Branch Regions . Pre-discovered Areas . | . . . Known Exits Taken . | . . . Unknown Exits Taken 2 | 1 1 . Scrap Searched . | . . . Spaces Dug . | . . . Terrain Destroyed 97 | . 39 58 Melee . | . . . Projectile 11 | . . 11 AOE 86 | . 39 47 Terrain Rammed . | . . . Walls Destroyed . | . . . Machines Disabled . | . . . Actions | -11 -10 -9 --------- Run | Yrd Mat Mat Total 900 | 110 464 326 Wait 66 | . 64 2 Move 732 | 97 363 272 Hop . | . . . Pick Up 10 | 1 6 3 Fast Attach 19 | 7 6 6 Attach 4 | . 1 3 Detach 10 | . 7 3 Swap 5 | . 1 4 Drop 13 | . 9 4 Fire 40 | 5 7 28 Melee . | . . . Ram . | . . . Kick . | . . . Crush 1 | . . 1 Escape Stasis . | . . . Rewire . | . . . Trap . | . . . Miscellaneous . | . . . Route ------- -11/Scrapyard -10/Materials -9/Materials History --------- Turn | Location | Event 19 | -11/Scrapyard | Discovered new exit (range 16) 176 | -11/Scrapyard | Entered Materials 304 | -10/Materials | Build established: Mutant 548 | -10/Materials | Discovered new exit (range 15) 658 | -10/Materials | Entered another Materials area 658 | -9/Materials | Evolved 2 slots: Propulsion x2 766 | -9/Materials | Lost 4 parts (3n1w) 1116 | -9/Materials | Core integrity fell below 50% 1147 | -9/Materials | Core integrity fell below 20% 1153 | -9/Materials | Core destroyed Last Messages --------------- 01142_ Overheating: Ion Engine damaged (-2). 01143_ U-05 Engineer builds a Wall. 01144_ Lgt. Treads broken. 01144_ Overheating: Short circuit. 01144_ R-06 Scavenger collects Hammer. 01145_ Overheating: Broken Lgt. Treads damaged (-24). 01146_ Power failure, Ion Engine shutdown. 01147_ Overheating: Core damaged (-40). 01147_ Imp. Light Armor Plating destroyed. 01149_ Overheating: Energy bleed (-27). 01150_ Overheating: Broken Lgt. Treads damaged (-10). 01150_ Overheating: Hvy. Particle Cannon damaged (-27). 01150_ Overheating: Hvy. Particle Cannon damaged (-42). 01150_ Hvy. Particle Cannon destroyed. 01152_ Acquired Lgt. Treads. 01153_ Overheating: Core damaged (-64). Map ----- +----------------------------------------------------+ | | | | | | | | | | | | | | | | | | | ?????????????????????????????????????????????????? | | ?????????????????????????????????????????????????? | | ?????????????????????????????????????????????????? | | ?????????????????????????????????????????????????? | | ?????????????????????????????????????????????????? | | ????????????????????????????????????#????????????? | | ???????????????????????????????????? ????????????? | | ???????????????????????????????????? ????????????? | | ???????????????????????????????????? ????????????? | | ???????????????????????????????????# #???????????? | | ???????????????????????????????????# #???????????? | | ???????????????????????????????????# #???????????? | | ???????????????????????????????????# ###########?? | | ????????????????#??????????????????# ## #?? | | ???????????????## ????????????????# ## #?? | | ???????????????# ?######????????# ## #?? | | ???????????????# #=# @#????????# ## #?? | | ???????????????+ ##=[########### ## #?? | | ???????????????# *[Y% [/ + #?? | | ???????????????# ##u######## # = #? | | ???????????????## ?####??????# # #? | | ????????????????# ?# =????????#!! # # | | ????????????????# ??# ????????# ! ]!!#######+## | | ????????????????#???+ ????????########???# | | ????????????????????# ????????????????????# | | ????????????????????# ????????????????????# | | ????????????????????# ????????????????????# #### | | ????????????????????# ????????????????????# #??? | | ????????????????????#??????????????# ????+ #??? | | ???????????????????????????????????# # #??? | | ???????????????????????????????????# + #??? | | ????????????????????????????????????+#######+##### | | ????????????????????????????????????????# # | | ????????????????????????????????????????#! !# | | ????????????????????????????????????????# # | | ????????????????????????????????????????# """ # | | ????????????????????????????????????????# """"" # | | ????????????????????????????????????????# """"" # | | ????????????????????????????????????????# """"" + | | ????????????????????????????????????????# """ # | | ????????????????????????????????????????# # | +----------------------------------------------------+ Best States ------------- Heat Dissipation 28 Energy Generation 10 Energy Capacity 250 Matter Stores 300 Matter Capacity 300 Sight Range 16 Terrain Scan Density 10 Armor Coverage 150 Evasion (%) 55 Recoil Reduction 2 Item Schematics ----------------- None Robot Schematics ------------------ None Fabricated ------------ Nothing Alien Tech Used ----------------- None Achievements -------------- Everything Is Under Control Challenges ------------ None Game ------ Seed WeaponSpliceMegatreads Manual? 0 Play Time 00:17:09 Cumulative 13.1 hours Start 2024.04.22 @ 12:57:18 End 2024.04.22 @ 13:35:39 Sessions 1 Manual Loads 0 Difficulty Rogue Special Mode None Game No. 21 Rogue 20 Adventurer 1 Explorer 0 Win Type - Total 0 Types 0/0/0/0/0/0/0/0/0 Lore% 9 Gallery% 15 Achievement% 17 Wizard Run 0 Options --------- Layout 1 ASCII 0 Keyboard 1 Movement Vi Keybinds 0 Fullscreen 2 Font 24/Smallcaps Map View 50x40 Zoom Use 0% Tactical HUD 1 Map Filters NONE Filters NONE Steam 1 RUN: 265dedf3-c2a4-42d3-b659-c822636182d3